Cogmind - Beta 15 @@@ ROGUE MODE // 2025.09.30 @ 19:57:08 Player: shapeshifter Result: Self-destructed Performance ------------- Evolutions (7) 3500 Regions Visited (18) 3600 Robots Destroyed (86) 430 Value Destroyed (3071) 3071 Prototype IDs (243) 4860 Alien Tech Used (0) 0 Bonus (5058) 5058 TOTAL SCORE: 20519 Bonus ------- High Alert Combat Kills 110 Follower Combat Kills 2389 Aligned with FarCom 300 Met Data Miner 300 Used Data Conduit 3000 Built Enhanced Grunts 300 Met R17 at Cetus 500 Friendly Fire -1841 Cogmind --------- Core Integrity 7/1300 Matter 198/300 Energy 99/100 System Corruption 8% Temperature Cool (0) Movement Core (50) Location -3/Research Parts ------- > --- POWER (2) -------- (None) > --- PROPULSION (7) --- (None) > --- UTILITY (10) ----- (None) > --- WEAPON (2) ------- (None) > --- INVENTORY (5) ---- Advanced Gravity Neutralizer Advanced Component Analysis Suite Peak State ------------ > --- POWER ------------ Quantum Reactor > --- PROPULSION ------- Centrium Heavy Treads Centrium Heavy Treads Centrium Heavy Treads > --- UTILITY ---------- Large Storage Unit Enhanced Optical Array Improved Sensor Array Improved Signal Interpreter Advanced Melee Analysis Suite Centrium Medium Armor Plating System Mapper Quantum Router > --- WEAPON ----------- Advanced KE Penetrator Advanced KE Penetrator > --- INVENTORY -------- Micro Nuclear Core Centrium Heavy Treads Linear Gravjet Advanced Energy Well Advanced Energy Well Improved Transmission Jammer Improved Reaction Control System Centrium Medium Armor Plating Centrium Medium Armor Plating Advanced Shield Generator Advanced KE Penetrator Improved Plasma Cutter Force Lance [Rating: 134] Favorites ----------- Power Ion Engine Engine Ion Engine Power Core Micro Nuclear Core Reactor Light Antimatter Reactor Propulsion Compact Wheel Treads Light Treads Leg Flexi-carbon Leg Wheel Compact Wheel Hover Unit Gravmag System Flight Unit Cesium-ion Thruster Utility Large Storage Unit Device Improved Sensor Array Storage Large Storage Unit Processor Improved Signal Interpreter Hackware System Mapper Protection Core Shielding Weapon Assault Rifle Ballistic Gun Assault Rifle Ballistic Cannon Gauss Cannon Launcher Proton Missile Launcher Special Weapon Remote Datajack Slashing Weapon Greatsword Piercing Weapon Force Lance Build | -11 -10 -10 -10 -9 -8 -7 -6 -6 -6 -6 -5 -5 -5 -5 -4 -4 -4 -3 ------- Run | Yrd Mat Min Exi Min Mat Fac Fac Low Low Dat Pro Fac Ext Cet Fac Was Fac Res Slots Evolved 14 | . . . . . 4 2 2 . . . . 2 . . 2 . . 2 Power 1 | . . . . . . . . . . . . . . . 1 . . . Propulsion 5 | . . . . . 1 1 1 . . . . 1 . . . . . 1 Utility 8 | . . . . . 3 1 1 . . . . 1 . . 1 . . 1 Weapon . | . . . . . . . . . . . . . . . . . . . Parts Attached 119 | 7 9 . 1 4 4 11 19 . 1 10 1 12 9 13 10 . 1 7 Power 14 | 1 2 . . 1 . . 2 . . 1 . 1 . 2 3 . . 1 Engine 6 | 1 2 . . 1 . . 1 . . 1 . . . . . . . . Core 3 | . . . . . . . 1 . . . . 1 . 1 . . . . Reactor 5 | . . . . . . . . . . . . . . 1 3 . . 1 Propulsion 47 | 2 3 . . . 2 3 5 . . 5 1 7 6 4 4 . 1 4 Treads 8 | . 2 . . . . . . . . . . . 3 3 . . . . Leg 1 | . . . . . . . . . . . . . 1 . . . . . Wheel 12 | 2 1 . . . 2 2 3 . . . 1 . . . 1 . . . Hover 15 | . . . . . . . 1 . . . . 7 2 1 3 . 1 . Flight 11 | . . . . . . 1 1 . . 5 . . . . . . . 4 Utility 35 | 2 1 . 1 1 2 5 7 . 1 2 . 3 3 2 3 . . 2 Device 11 | 1 . . . . 1 1 4 . . . . . 1 . 3 . . . Storage 5 | 1 1 . 1 . . . 1 . . . . . . . . . . 1 Processor 6 | . . . . . 1 2 . . . 2 . . 1 . . . . . Hackware 5 | . . . . . . . 2 . . . . 3 . . . . . . Protection 8 | . . . . 1 . 2 . . 1 . . . 1 2 . . . 1 Artifact . | . . . . . . . . . . . . . . . . . . . Weapon 23 | 2 3 . . 2 . 3 5 . . 2 . 1 . 5 . . . . Energy Gun . | . . . . . . . . . . . . . . . . . . . Energy Cannon . | . . . . . . . . . . . . . . . . . . . Ballistic Gun 15 | 2 3 . . 1 . 3 2 . . . . . . 4 . . . . Ballistic Cannon 1 | . . . . 1 . . . . . . . . . . . . . . Launcher 1 | . . . . . . . 1 . . . . . . . . . . . Special Weapon 3 | . . . . . . . . . . 2 . . . 1 . . . . Impact Weapon . | . . . . . . . . . . . . . . . . . . . Slashing Weapon 2 | . . . . . . . 2 . . . . . . . . . . . Piercing Weapon 1 | . . . . . . . . . . . . 1 . . . . . . Special Melee Weapon . | . . . . . . . . . . . . . . . . . . . Unidentified Prototypes 3 | . . . . . . . . . . . . 3 . . . . . . Corrupted Parts 10 | . . . . . . . . . . . 1 . . 9 . . . . System Corruption 56 | . . . . . . . . . . . 4 . . 52 . . . . Parts Lost 48 | . 1 . . . 1 6 3 . 4 2 . . 5 3 . . 15 8 Power 4 | . . . . . . . 1 . . . . . . . . . 2 1 Propulsion 25 | . . . . . 1 3 1 . 3 2 . . 4 2 . . 5 4 Utility 12 | . . . . . . 3 1 . 1 . . . 1 . . . 3 3 Weapon 7 | . 1 . . . . . . . . . . . . 1 . . 5 . Highest Loss Streak 15 | . 1 . . . 1 3 3 . 3 2 . . 2 3 . . 15 8 To Critical Strikes 2 | . 1 . . . . . . . . . . . . 1 . . . . Average Backups 13 | 4 11 14 18 20 17 18 10 7 10 10 14 13 13 13 15 15 13 3 Power 2 | . 1 3 5 5 4 2 . 1 2 1 3 2 2 1 . . . . Propulsion 1 | 2 4 3 3 2 . 1 . . 1 1 . . . . . . . . Utility 6 | . 3 6 7 9 11 8 4 4 3 4 7 6 8 7 10 11 10 3 Weapon 2 | . 2 2 2 1 . 3 2 1 1 1 2 1 1 3 3 3 2 . Tool/Special . | . . . . . . . . . . . . . . . . . . . Unused Backups 50 | . 3 . 3 5 1 7 5 . 1 1 . 5 3 7 1 . 7 1 Power 9 | . . . . 2 . 3 . . . 1 . 1 . 1 . . 1 . Propulsion 6 | . 2 . . 1 . . . . . . . 1 1 1 . . . . Utility 27 | . . . 3 1 1 3 3 . 1 . . 2 1 4 1 . 6 1 Weapon 8 | . 1 . . 1 . 1 2 . . . . 1 1 1 . . . . Tool/Special . | . . . . . . . . . . . . . . . . . . . Average Slot Usage (%) 85 | . 99 100 100 99 98 80 77 93 74 75 82 85 93 84 80 94 71 11 Engine 5 | . 14 14 14 14 9 7 3 . . . . . . . . . . . Core 2 | . . . . . . . 2 6 6 6 6 5 5 3 3 . . . Treads 2 | . 11 . . . . . . . . . . . 3 11 . . . . Wheel 11 | . 16 28 28 28 26 15 5 20 15 1 2 2 . . 1 . . . Hover 5 | . . . . . . . 3 . . . . 15 24 10 18 26 17 . Flight 3 | . . . . . . . 3 13 8 16 20 8 . . . . . 7 Device 11 | . 14 14 14 10 17 12 19 20 8 6 6 5 4 5 11 15 10 . Storage 7 | . 14 14 14 14 9 7 6 6 6 4 6 5 5 5 5 5 4 . Processor 10 | . . . . . 8 8 13 13 13 22 26 17 18 17 15 15 13 . Hackware 4 | . . . . . . . 1 6 6 6 6 16 12 11 10 10 9 . Protection 3 | . . . . 3 9 10 5 . 1 2 . . 2 5 3 . . 2 Ballistic Gun 10 | . 27 28 28 23 9 12 8 . . . . . . 1 . 5 4 . Slashing Weapon 1 | . . . . . . . 2 6 6 5 6 4 . . . . . . Piercing Weapon 1 | . . . . . . . . . . . . . 5 3 5 5 3 . Peak Build Rating 134 | 8 8 8 17 30 38 44 60 55 54 54 54 93 97 134 128 128 129 62 Average Rating 49 | 4 7 8 11 20 37 39 47 54 39 45 52 78 86 110 109 128 97 31 On Entrance 49 | . 8 8 8 17 30 38 42 55 55 33 52 54 93 87 93 128 128 3 Naked Turns 97 | . . . . . . . . . . . . . . . . . 28 69 Heaviest Build 112 | 14 30 30 90 108 110 112 107 37 36 33 32 33 42 60 61 61 61 25 Greatest Support 240 | 32 40 32 32 32 48 58 36 36 36 25 15 58 69 240 66 66 69 47 Greatest Overweight (x) 11 | . 1 . 2 3 3 11 10 1 2 2 2 2 2 . 2 . 1 . Average Overweight (x) 1 | . . . 1 2 2 4 3 1 . 1 2 . . . . . . . Largest Inventory Capacity 25 | 8 15 15 25 25 25 25 25 15 15 15 15 15 15 15 15 15 15 5 Average Capacity 17 | 7 14 15 24 25 25 25 16 15 15 12 15 15 15 15 15 15 13 5 Most Carried 25 | 8 15 14 25 25 25 25 25 13 15 15 15 15 15 15 15 15 15 5 Average Carried 15 | 4 11 14 19 24 22 24 15 12 10 10 14 13 13 14 14 15 13 3 Final Capacity 25 | 8 15 15 25 25 25 25 15 15 15 15 15 15 15 15 15 15 5 5 Final Carried 25 | 8 14 14 25 25 23 25 14 13 15 14 14 15 14 15 15 15 5 2 Class Distribution -------------------- 42% | Mutant 10% | Skirmisher 9% | Scavenger-Assassin 8% | Hacker-Scout 5% | Assassin 5% | Scavenger-Gladiator 4% | Wizard-Scout 4% | Hacker-Assassin 3% | Commander-Assassin Dominant Class ---------------- Mutant | -10/Materials Mutant | -10/Mines Mutant | -10/Exiles Mutant | -9/Mines Mutant | -8/Materials Mutant | -7/Factory Skirmisher | -6/Factory Scavenger-Assassin | -6/Lower Caves Scavenger-Assassin | -6/Lower Caves Scavenger-Gladiator | -6/Data Miner Scavenger-Gladiator | -5/Proximity Caves Wizard-Gladiator | -5/Factory Hacker-Scout | -5/Extension Commander-Assassin | -5/Cetus Hacker-Scout | -4/Factory Hacker-Scout | -4/Waste Hacker-Scout | -4/Factory Mutant | -3/Research Resources | -11 -10 -10 -10 -9 -8 -7 -6 -6 -6 -6 -5 -5 -5 -5 -4 -4 -4 -3 ----------- Run | Yrd Mat Min Exi Min Mat Fac Fac Low Low Dat Pro Fac Ext Cet Fac Was Fac Res Matter Collected 3325 | 282 369 . 147 50 232 636 257 23 87 105 93 150 345 270 130 20 129 . Remotely . | . . . . . . . . . . . . . . . . . . . Salvage Created 3767 | 118 602 . . . 165 762 269 . 80 30 . 274 511 538 . . 418 . Parts 208 | 10 33 . . . 11 42 13 . 15 4 . 12 15 26 . . 27 . Haulers Intercepted 10 | . 2 . . . . 2 . . . . . 2 3 . . . 1 . Recyclers Shooed 1 | . 1 . . . . . . . . . . . . . . . . . Parts Field Recycled . | . . . . . . . . . . . . . . . . . . . Retrieved Matter . | . . . . . . . . . . . . . . . . . . . Parts Self-Destructed 8 | . . . . . . . . . 3 . 5 . . . . . . . Prevented 2 | . . . . . . . . . . . 2 . . . . . . . Kills | -11 -10 -10 -10 -9 -8 -7 -6 -6 -6 -6 -5 -5 -5 -5 -4 -4 -4 -3 ------- Run | Yrd Mat Min Exi Min Mat Fac Fac Low Low Dat Pro Fac Ext Cet Fac Was Fac Res Combat Hostiles Destroyed 54 | . 13 . . . 4 14 4 . 3 . . 1 3 5 . . 7 . Melee 12 | . . . . . . . 3 . 3 . . 1 3 . . . 2 . Guns 32 | . 13 . . . 1 12 1 . . . . . . . . . 5 . Cannons 5 | . . . . . 3 2 . . . . . . . . . . . . AOE 2 | . . . . . . . . . . . . . . 2 . . . . Classes Destroyed 12 | 2 5 . . . 2 . 1 . 1 . . 1 . . . . . . Worker 4 | . 1 . . . 1 1 1 . . . . . . . . . . . Builder 1 | . . . . . . . . . . . . 1 . . . . . . Tunneler 2 | 2 . . . . . . . . . . . . . . . . . . Hauler 10 | . 2 . . . . 2 . . . . . 2 3 . . . 1 . Recycler 5 | 1 . . . . . 3 1 . . . . . . . . . . . Operator 2 | . . . . . 1 . 1 . . . . . . . . . . . Watcher 6 | . 2 . . . . 1 . . . . . 1 . 2 . . . . Swarmer 17 | . 5 . . . . 6 3 . . . . . . . . . 3 . Grunt 19 | . 8 . . . 3 6 . . . . . 1 1 . . . . . Sentry 5 | . . . . . 1 2 . . . . . . 2 . . . . . Programmer 6 | . . . . . . . 1 . 1 . . . . . . . 4 . Cetus Guard 5 | . . . . . . . . . . . . . . 5 . . . . Thief 2 | . . . . . . . . . 2 . . . . . . . . . Best Kill Streak 6 | 3 6 . . . 3 5 3 . 2 1 . 1 2 4 . . 5 . Combat Bots Only 5 | . 4 . . . 3 3 3 . 2 . . 1 2 3 . . 5 . Max Kills in Single Turn 2 | 1 1 . . . 1 2 1 . 1 1 . 1 1 2 . . 2 . Gunslinging 1 | . . . . . . . . . . . . . . . . . 1 . Exploded 2 | . . . . . . . . . . . . . . 2 . . . . Melee 1 | . . . . . . . 1 . 1 . . 1 1 . . . 1 . Uniques/NPCs Destroyed 2 | . . . . . . . . . . 1 . . . 1 . . . . Data Miner (-6/Data Miner) A7 (-5/Cetus) Combat | -11 -10 -10 -10 -9 -8 -7 -6 -6 -6 -6 -5 -5 -5 -5 -4 -4 -4 -3 -------- Run | Yrd Mat Min Exi Min Mat Fac Fac Low Low Dat Pro Fac Ext Cet Fac Was Fac Res Hostile Shots Fired 801 | . 58 . . . 21 102 49 1 33 6 2 3 24 28 . . 207 267 Missed 336 | . 13 . . . 10 40 16 . 9 2 1 1 4 11 . . 84 145 Hits 465 | . 45 . . . 11 62 33 1 24 4 1 2 20 17 . . 123 122 Melee 13 | . . . . . . . . 1 12 . . . . . . . . . Projectile 452 | . 45 . . . 11 62 33 . 12 4 1 2 20 17 . . 123 122 AOE 2 | . . . . . . . . . . . . . . . . . 2 . Critical Strikes 20 | . 1 . . . 1 1 3 . . . . . 1 3 . . 3 7 Actively Blocked 1 | . . . . . . . . . . . . . . . . . . 1 Damage Taken 8769 | . 493 . . . 210 988 531 . 314 184 20 38 694 450 . . 2231 2616 Core 2608 | . 40 . . . 24 162 99 . 118 7 20 . 178 61 . . 606 1293 Absorbed by Shields 315 | . . . . . . . 162 . 45 . . . 9 66 . . . 33 Redirected to Shielding 179 | . . . . . . 27 17 . . 30 . . . . . . . 105 Ignored by Resistances 4 | . . . . . . 4 . . . . . . . . . . . . Regen/Repaired (Parts) 23 | . . . . . . . . . . . . . . . . . 23 . Core Remaining (%) 78 | 100 . . . 84 95 76 . . . . 71 . . 76 . . 47 . Volleys Fired 250 | 3 57 . . . 17 64 12 . . 3 . . 40 8 . . 46 . Largest 2 | 2 2 . . . 2 2 2 . . 1 . . 1 1 . . 2 . Hottest 70 | 40 40 . . . 68 68 60 . . . . . 5 39 . . 70 . Shots Fired 405 | 6 113 . . . 34 130 22 . . 3 . . 40 8 . . 49 . Gun 316 | 6 113 . . . 17 110 21 . . . . . . . . . 49 . Cannon 37 | . . . . . 17 20 . . . . . . . . . . . . Launcher 9 | . . . . . . . 1 . . . . . . 8 . . . . Special 43 | . . . . . . . . . . 3 . . 40 . . . . . Kinetic 353 | 6 113 . . . 34 130 21 . . . . . . . . . 49 . Thermal . | . . . . . . . . . . . . . . . . . . . Explosive . | . . . . . . . . . . . . . . . . . . . Electromagnetic 9 | . . . . . . . 1 . . . . . . 8 . . . . Robot Hit Streak 18 | 3 16 . . . 7 7 11 . . 14 . . 18 4 . . 5 . Robot Miss Streak 19 | 1 4 . . . 11 19 6 . . . . . 1 2 . . 4 . Penetration Max . | . . . . . . . . . . . . . . . . . . . Secondary Targets 3 | . 1 . . . . 1 . . . . . . . . . . 1 . Max Gunslinging Chain 1 | . 1 . . . . 1 . . . . . . . . . . 1 . Shots Hit Robots 294 | 5 66 . . . 19 78 19 . 6 4 . 9 52 12 1 . 23 . Core Hits 146 | 4 31 . . . 16 52 6 . 3 1 . 4 7 14 . . 8 . Critical Kills 3 | . . . . . . . . . . . . . . . . . 3 . Critical Parts Destroyed 2 | . . . . . . . . . . . . . . . . . 2 . Critical Strikes 21 | . . . . . 2 7 . . 1 . . 2 2 . . . 7 . Destroy 5 | . . . . . . . . . . . . . . . . . 5 . Blast 9 | . . . . . 2 7 . . . . . . . . . . . . Sever 1 | . . . . . . . . . 1 . . . . . . . . . Impale 6 | . . . . . . . . . . . . 2 2 . . . 2 . Melee Attacks 85 | . . . . . . . 16 1 14 1 . 15 19 7 3 . 9 . Impact . | . . . . . . . . . . . . . . . . . . . Slashing 42 | . . . . . . . 16 1 14 1 . 10 . . . . . . Piercing 43 | . . . . . . . . . . . . 5 19 7 3 . 9 . Sneak Attacks 17 | . . . . . . . 3 . . 1 . 3 2 7 . . 1 . Combat Hostiles . | . . . . . . . . . . . . . . . . . . . Follow-up Attacks . | . . . . . . . . . . . . . . . . . . . Damage Inflicted 8431 | 55 822 . . . 493 1524 930 . 302 141 . 695 1020 1395 68 . 983 3 Guns 3324 | 55 822 . . . 247 1221 332 . . . . . . . . . 647 . Cannons 549 | . . . . . 246 303 . . . . . . . . . . . . Explosions 985 | . . . . . . . 37 . . . . . . 948 . . . . Melee 3570 | . . . . . . . 561 . 302 141 . 695 1020 447 68 . 336 . Ramming 3 | . . . . . . . . . . . . . . . . . . 3 Kinetic 3873 | 55 822 . . . 493 1524 332 . . . . . . . . . 647 . Thermal 399 | . . . . . . . . . . . . . . 399 . . . . Explosive . | . . . . . . . . . . . . . . . . . . . Electromagnetic 586 | . . . . . . . 37 . . . . . . 549 . . . . Impact . | . . . . . . . . . . . . . . . . . . . Slashing 1438 | . . . . . . . 561 . 302 141 . 434 . . . . . . Piercing 2132 | . . . . . . . . . . . . 261 1020 447 68 . 336 . Highest Corruption 54 | . . . . . . 2 3 3 3 3 7 . 2 54 . . 5 8 Average Corruption 6 | . . . . . . 1 2 3 3 3 4 . 2 26 . . 2 4 Corruption Purged . | . . . . . . . . . . . . . . . . . . . Corruption Blocked . | . . . . . . . . . . . . . . . . . . . Effects 70 | . . . . . . 8 14 2 8 4 6 . 3 19 . . 3 3 Message Errors 15 | . . . . . . 1 4 . . 2 2 . 1 3 . . 1 1 Matter Fused 17 | . . . . . . 1 4 1 2 . 2 . . 6 . . . 1 Heat Flow Errors 4 | . . . . . . . 1 . 1 . . . . 2 . . . . Energy Discharges 10 | . . . . . . 2 1 1 . 2 2 . . 2 . . . . Parts Rejected 1 | . . . . . . . . . . . . . . 1 . . . . Parts Fused 3 | . . . . . . . . . 3 . . . . . . . . . Data Loss (minor) 12 | . . . . . . 1 2 . 1 . . . 2 4 . . 1 1 Data Loss (major) 3 | . . . . . . . 1 . 1 . . . . 1 . . . . Misfires 2 | . . . . . . 2 . . . . . . . . . . . . Alerts 1 | . . . . . . 1 . . . . . . . . . . . . Weapon Failures 2 | . . . . . . . 1 . . . . . . . . . 1 . Overload Shots . | . . . . . . . . . . . . . . . . . . . Overflow Damage 254 | . . . . . . 12 40 . 4 . . 73 . 51 33 . 41 . Projectiles 12 | . . . . . . 12 . . . . . . . . . . . . Explosions 58 | . . . . . . . 7 . . . . . . 51 . . . . Melee 184 | . . . . . . . 33 . 4 . . 73 . . 33 . 41 . Knockbacks 3 | . . . . . 2 1 . . . . . . . . . . . . Impact . | . . . . . . . . . . . . . . . . . . . Kinetic 3 | . . . . . 2 1 . . . . . . . . . . . . Secondary . | . . . . . . . . . . . . . . . . . . . Self-Inflicted Damage 1 | . . . . . . . . . . . . . . . . . . 1 Shots . | . . . . . . . . . . . . . . . . . . . Rammed 1 | . . . . . . . . . . . . . . . . . . 1 Targets Rammed 1 | . . . . . . . . . . . . . . . . . . 1 Kicked . | . . . . . . . . . . . . . . . . . . . Crushed . | . . . . . . . . . . . . . . . . . . . Highest Temperature 246 | . 18 . . . 120 69 203 . 171 . . 1 4 246 7 . . 23 Average Temperature 32 | . 7 . . . 36 17 113 . 96 . . 1 4 116 5 . . 14 Received Heat Transfer 911 | . 129 . . . 114 216 . . 36 . . 18 121 27 . . 12 238 Siege Activations . | . . . . . . . . . . . . . . . . . . . Martial Activations . | . . . . . . . . . . . . . . . . . . . Shielding Activations . | . . . . . . . . . . . . . . . . . . . Robots Disrupted . | . . . . . . . . . . . . . . . . . . . Combat Hostiles . | . . . . . . . . . . . . . . . . . . . Robots Corrupted 3 | . . . . . . . . . . . . . . 3 . . . . Combat Hostiles 3 | . . . . . . . . . . . . . . 3 . . . . Parts Fried 5 | . . . . . . . . . . . . . . 5 . . . . Impact Corruptions . | . . . . . . . . . . . . . . . . . . . Robots Melted . | . . . . . . . . . . . . . . . . . . . Combat Hostiles . | . . . . . . . . . . . . . . . . . . . Parts Melted 1 | . . . . . . . . . . . . . 1 . . . . . Heat Transferred 200 | . . . . . . . . . . . . . . 200 . . . . Parts Sabotaged . | . . . . . . . . . . . . . . . . . . . Parts Stolen 5 | . . . . . . . . 1 4 . . . . . . . . . Parts Stripped . | . . . . . . . . . . . . . . . . . . . Power Chain Reactions 2 | . . . . . . . . . . . . . . 2 . . . . Alert | -11 -10 -10 -10 -9 -8 -7 -6 -6 -6 -6 -5 -5 -5 -5 -4 -4 -4 -3 ------- Run | Yrd Mat Min Exi Min Mat Fac Fac Low Low Dat Pro Fac Ext Cet Fac Was Fac Res Maximum Alert Level 2 | . . . . . . . . . . . . 2 2 1 2 1 2 2 Low Security (%) 70 | 100 100 100 . 100 100 100 100 . . . . 45 13 11 45 3 12 . Level 1 23 | . . . . . . . . . . . . 42 83 88 28 96 16 56 Level 2 6 | . . . . . . . . . . . . 11 2 . 26 . 71 43 Level 3 . | . . . . . . . . . . . . . . . . . . . Level 4 . | . . . . . . . . . . . . . . . . . . . Level 5 . | . . . . . . . . . . . . . . . . . . . High Security . | . . . . . . . . . . . . . . . . . . . Max Security . | . . . . . . . . . . . . . . . . . . . Peak Influence 664 | 10 170 . . . 145 126 118 . . . . 497 415 360 632 242 664 661 Initial 365 | . 3 . . . . 9 35 . . . . 365 242 172 154 214 135 316 Average 131 | 1 77 . . . 43 55 12 . . . . 242 248 262 270 211 471 382 Influence Increases 6397 | 15 454 . . . 235 516 243 . 90 20 165 840 1019 408 778 80 1009 525 Destroy 0b10 Robot/C 2540 | . 260 . . . 140 280 100 . 20 20 80 240 540 160 300 . 400 . Destroy 0b10 Robot/NC 195 | 15 25 . . . 15 35 15 . . . 5 25 30 10 5 . 15 . Destroy Leader 438 | . 68 . . . 32 54 30 . 10 . 10 36 54 . 62 . 82 . Allied During Kill 985 | . . . . . 21 . 2 . . . 70 158 225 167 278 . 64 . Trap Triggered on 0b10 30 | . . . . . . . 20 . . . . . 10 . . . . . Successful Hack 194 | . 41 . . . 18 32 8 . . . . 10 61 . 24 . . . Select Force Hacks 20 | . . . . . . 20 . . . . . . . . . . . . Disable Machine 345 | . . . . . . 45 15 . . . . 15 30 15 30 . 195 . Destroy Structure 495 | . . . . . 9 5 23 . . . . 26 54 56 34 80 208 . Advance Influence 300 | . . . . . . . . . . . . 300 . . . . . . Partial Spotted 90 | . . . . . . . . . . . . 30 15 . 45 . . . Lose Combat Pursuer 765 | . 60 . . . . 45 30 . 60 . . . . . . . 45 525 Influence Decreases 5736 | 10 459 . . . 215 464 197 118 90 20 60 448 1207 441 442 498 599 468 Entered New Map 1394 | . 2 . . . . 11 37 45 . . . 40 255 137 122 398 59 288 Time Decay 2592 | 10 447 . . . 145 393 160 53 70 10 60 238 342 214 160 60 130 100 Lost Part 420 | . 10 . . . 10 60 . . 20 10 . . 50 30 . . 150 80 Lost Ally 880 | . . . . . 60 . . 20 . . . 20 260 60 160 40 260 . Purge Threat 450 | . . . . . . . . . . . . 150 300 . . . . . Squads Dispatched 31 | . 4 . . 1 1 4 3 . . . . 2 . . 3 . 7 6 Investigation 14 | . 3 . . 1 . 2 1 . . . . . . . 2 . 2 3 Extermination 5 | . . . . . . 1 2 . . . . 1 . . . . 1 . Reinforcement 10 | . 1 . . . 1 1 . . . . . 1 . . 1 . 2 3 Assault . | . . . . . . . . . . . . . . . . . . . Garrison 2 | . . . . . . . . . . . . . . . . . 2 . Intercept . | . . . . . . . . . . . . . . . . . . . Searches Triggered . | . . . . . . . . . . . . . . . . . . . Construction Impeded 2 | . . . . . . 1 . . . . . 1 . . . . . . Haulers Reinforced . | . . . . . . . . . . . . . . . . . . . Active Scanning Responses . | . . . . . . . . . . . . . . . . . . . Cargo Convoy Interrupts . | . . . . . . . . . . . . . . . . . . . Stealth | -11 -10 -10 -10 -9 -8 -7 -6 -6 -6 -6 -5 -5 -5 -5 -4 -4 -4 -3 --------- Run | Yrd Mat Min Exi Min Mat Fac Fac Low Low Dat Pro Fac Ext Cet Fac Was Fac Res Distress Signals 14 | . 4 . . . . 1 . . . . . 3 1 1 . . 3 1 Communications Jammed 23 | . . . . . 14 1 8 . . . . . . . . . . . Distress Signals 23 | . . . . . 14 1 8 . . . . . . . . . . . Times Spotted 223 | . 24 . . . 11 27 14 3 12 4 2 14 21 10 7 2 21 51 Peak Tracking Total 22 | . 7 . . . 5 5 3 2 4 4 3 6 4 5 5 2 7 22 Tactical Retreats 13 | . 1 . . . . 3 1 . 1 . . . . . . . 2 5 Traps | -11 -10 -10 -10 -9 -8 -7 -6 -6 -6 -6 -5 -5 -5 -5 -4 -4 -4 -3 ------- Run | Yrd Mat Min Exi Min Mat Fac Fac Low Low Dat Pro Fac Ext Cet Fac Was Fac Res Traps Triggered 18 | . 3 . . . . 1 1 . . . . . 6 . 2 . 1 4 Indirectly . | . . . . . . . . . . . . . . . . . . . Trap Hack Attempts . | . . . . . . . . . . . . . . . . . . . Triggered . | . . . . . . . . . . . . . . . . . . . Disarmed . | . . . . . . . . . . . . . . . . . . . Reprogrammed 27 | . . . . . . . . . . . . 12 15 . . . . . Reused 3 | . . . . . . . 2 . . . . . 1 . . . . . Traps Reconfigurated 2 | . . . . . . . 2 . . . . . . . . . . . Traps Extracted . | . . . . . . . . . . . . . . . . . . . Installed . | . . . . . . . . . . . . . . . . . . . Triggered 3 | . . . . . . . 2 . . . . . 1 . . . . . Machines | -11 -10 -10 -10 -9 -8 -7 -6 -6 -6 -6 -5 -5 -5 -5 -4 -4 -4 -3 ---------- Run | Yrd Mat Min Exi Min Mat Fac Fac Low Low Dat Pro Fac Ext Cet Fac Was Fac Res Machines Disabled 24 | . . . . . . 3 1 . . . . 1 3 1 2 . 13 . Max in Single Turn 5 | . . . . . . 1 1 . . . . . . 1 . . 5 . Garrison Access 5 | . . . . . . 1 1 . . . . 1 . . 1 . . 1 Energy Cycler 1 | . . . . . . . . . . . . . 1 . . . . . Machines Repaired . | . . . . . . . . . . . . . . . . . . . Machines Dismantled 1 | . . . . . . . . . . . . . . 1 . . . . Machines Sabotaged . | . . . . . . . . . . . . . . . . . . . Overloaded Fab Kills . | . . . . . . . . . . . . . . . . . . . Hacking | -11 -10 -10 -10 -9 -8 -7 -6 -6 -6 -6 -5 -5 -5 -5 -4 -4 -4 -3 --------- Run | Yrd Mat Min Exi Min Mat Fac Fac Low Low Dat Pro Fac Ext Cet Fac Was Fac Res Machines Accessed 69 | . 9 . 2 1 4 5 9 . . 3 . 8 12 . 7 . 3 6 Terminals 45 | . 8 . . . 4 2 5 . . . . 5 12 . 3 . 2 4 Fabricators 6 | . . . . . . 2 1 . . . . . . . 2 . 1 . Repair Stations . | . . . . . . . . . . . . . . . . . . . Recycling Units 7 | . 1 . . . . . 2 . . . . 2 . . 1 . . 1 Scanalyzers . | . . . . . . . . . . . . . . . . . . . Garrison Access 5 | . . . . . . 1 1 . . . . 1 . . 1 . . 1 Total Hacks 213 | . 24 . 2 1 10 15 14 . . 25 . 35 48 . 21 . 7 11 Successful 127 | . 14 . 2 1 4 9 6 . . 25 . 27 26 . 10 . 2 1 Failed 85 | . 10 . . . 6 6 8 . . . . 7 22 . 11 . 5 10 Catastrophic 18 | . 2 . . . . . 5 . . . . 1 2 . 2 . 1 5 Database Lockouts 1 | . . . . . . . . . . . . 1 . . . . . . Manual 74 | . 16 . 1 . 9 8 1 . . . . 15 13 1 5 . 1 4 Terminals 150 | . 21 . . . 10 10 8 . . . . 32 48 . 9 . 5 7 Fabricators 13 | . . . . . . 3 2 . . . . . . . 6 . 2 . Repair Stations . | . . . . . . . . . . . . . . . . . . . Recycling Units 14 | . 3 . . . . . 2 . . . . 2 . . 5 . . 2 Scanalyzers . | . . . . . . . . . . . . . . . . . . . Garrison Access 8 | . . . . . . 2 2 . . . . 1 . . 1 . . 2 Terminal Hacks 82 | . 2 . 2 1 . 2 2 . . 25 . 20 26 . 2 . . . Record 7 | . . . 1 . . . . . . 6 . . . . . . . . Part Schematic 16 | . . . . . . 1 . . . 10 . 2 2 . 1 . . . Robot Schematic 7 | . . . . . . . . . . 6 . 1 . . . . . . Robot Analysis 1 | . . . . . . . 1 . . . . . . . . . . . Prototype ID Bank 6 | . . . . . . . . . . 3 . 1 2 . . . . . Open Door 5 | . . . . 1 . . . . . . . . 4 . . . . . Open DSF 1 | . . . . . . . . . . . . . . . 1 . . . Branch Access Points 2 | . 1 . . . . . . . . . . 1 . . . . . . Emergency Access Points 2 | . . . . . . . 1 . . . . 1 . . . . . . Fabricator Index 1 | . . . . . . . . . . . . 1 . . . . . . Alert Level 3 | . . . . . . . . . . . . 2 1 . . . . . Unreport Threat 3 | . . . . . . . . . . . . 1 2 . . . . . Locate Traps 3 | . . . . . . . . . . . . 1 2 . . . . . Reprogram Traps 8 | . . . . . . . . . . . . 3 5 . . . . . Dispatch Records 1 | . . . . . . . . . . . . . 1 . . . . . Maintenance Status 1 | . . . . . . . . . . . . 1 . . . . . . Security Status 2 | . . . . . . . . . . . . 1 1 . . . . . Extermination Status 1 | . . . . . . . . . . . . . 1 . . . . . Reinforcement Status 1 | . . . . . . . . . . . . . 1 . . . . . Assault Status 1 | . . . . . . . . . . . . . 1 . . . . . Recall Extermination 1 | . . . . . . . . . . . . 1 . . . . . . Hauler Manifests 1 | . . . . . . . . . . . . . 1 . . . . . Registered Components 1 | . . . . . . . . . . . . 1 . . . . . . Registered Prototypes 3 | . . . . . . . . . . . . 2 1 . . . . . Zone Layout 3 | . 1 . . . . 1 . . . . . . 1 . . . . . Proto ID Catalog 1 | . . . 1 . . . . . . . . . . . . . . . Fabricator Hacks 7 | . . . . . . 1 2 . . . . . . . 3 . 1 . Load Schematic 5 | . . . . . . 1 1 . . . . . . . 2 . 1 . Build 2 | . . . . . . . 1 . . . . . . . 1 . . . Repair Station Hacks . | . . . . . . . . . . . . . . . . . . . Recycling Unit Hacks 5 | . 1 . . . . . 1 . . . . 2 . . 1 . . . Retrieve Components 5 | . 1 . . . . . 1 . . . . 2 . . 1 . . . Scanalyzer . | . . . . . . . . . . . . . . . . . . . Garrison Access Hacks 5 | . . . . . . 1 1 . . . . 1 . . 1 . . 1 Seal Access 5 | . . . . . . 1 1 . . . . 1 . . 1 . . 1 Unauthorized Hacks 28 | . 11 . . . 4 5 . . . . . 4 . . 3 . 1 . Terminals 24 | . 11 . . . 4 3 . . . . . 4 . . 2 . . . Assimilate 1 | . 1 . . . . . . . . . . . . . . . . . Botnet 7 | . 4 . . . . 1 . . . . . 1 . . 1 . . . Skim 16 | . 6 . . . 4 2 . . . . . 3 . . 1 . . . Fabricators 4 | . . . . . . 2 . . . . . . . . 1 . 1 . Download 1 | . . . . . . 1 . . . . . . . . . . . . Recompile 3 | . . . . . . 1 . . . . . . . . 1 . 1 . Repair Stations . | . . . . . . . . . . . . . . . . . . . Recycling Units . | . . . . . . . . . . . . . . . . . . . Scanalyzers . | . . . . . . . . . . . . . . . . . . . Garrison Access . | . . . . . . . . . . . . . . . . . . . Data Cores Recovered 1 | . . . . . 1 . . . . . . . . . . . . . Used . | . . . . . . . . . . . . . . . . . . . Hacking Detections 44 | . 8 . . . 4 3 6 . . . . 4 9 . 4 . 2 4 Full Trace Events 7 | . 2 . . . . . 1 . . . . . . . 1 . 1 2 Feedback Events 2 | . . . . . . . . . . . . . . . . . . 2 Corruption 2 | . . . . . . . . . . . . . . . . . . 2 Feedback Blocked . | . . . . . . . . . . . . . . . . . . . Robot Schematics Acquired 8 | . . . . . . 1 . . . 6 . 1 . . . . . . Robots Built 1 | . . . . . . . 1 . . . . . . . . . . . Authchips 1 | . . . . . . . 1 . . . . . . . . . . . Time 38 | . . . . . . . 38 . . . . . . . . . . . Total Robot Build Rating 3 | . . . . . . . 3 . . . . . . . . . . . Part Schematics Acquired 16 | . . . . . . 1 . . . 10 . 2 2 . 1 . . . Parts Built 2 | . . . . . . . . . . . . . . . 2 . . . Authchips . | . . . . . . . . . . . . . . . . . . . Time 58 | . . . . . . . . . . . . . . . 58 . . . Total Part Build Rating 14 | . . . . . . . . . . . . . . . 14 . . . Parts Repaired . | . . . . . . . . . . . . . . . . . . . Time . | . . . . . . . . . . . . . . . . . . . Parts Recycled . | . . . . . . . . . . . . . . . . . . . Recycled Matter . | . . . . . . . . . . . . . . . . . . . Retrieved Matter . | . . . . . . . . . . . . . . . . . . . Retrieved Components 10 | . . . . . . . 3 . . . . 6 . . 1 . . . Parts Scanalyzed . | . . . . . . . . . . . . . . . . . . . Part Schematics Acquired . | . . . . . . . . . . . . . . . . . . . Parts Damaged . | . . . . . . . . . . . . . . . . . . . Bothacking | -11 -10 -10 -10 -9 -8 -7 -6 -6 -6 -6 -5 -5 -5 -5 -4 -4 -4 -3 ------------ Run | Yrd Mat Min Exi Min Mat Fac Fac Low Low Dat Pro Fac Ext Cet Fac Was Fac Res Used RIF Installer . | . . . . . . . . . . . . . . . . . . . Robots Hacked 2 | . . . . . . . . . . . . . 2 . . . . . Non-combat . | . . . . . . . . . . . . . . . . . . . Combat 2 | . . . . . . . . . . . . . 2 . . . . . Robot Hacks Applied 2 | . . . . . . . . . . . . . 2 . . . . . parse_system 2 | . . . . . . . . . . . . . 2 . . . . . Relay Couplers Released . | . . . . . . . . . . . . . . . . . . . Fabnet Peak Effective % . | . . . . . . . . . . . . . . . . . . . Robots Rewired 18 | . . . . . . . . . . . . . 18 . . . . . Allies Hacked 1 | . . . . . . . . . . . . . 1 . . . . . Hacks Repelled . | . . . . . . . . . . . . . . . . . . . Allies | -11 -10 -10 -10 -9 -8 -7 -6 -6 -6 -6 -5 -5 -5 -5 -4 -4 -4 -3 -------- Run | Yrd Mat Min Exi Min Mat Fac Fac Low Low Dat Pro Fac Ext Cet Fac Was Fac Res Total Allies 56 | . . . . 3 . . 1 . . 3 . . 26 5 . 18 . . Largest Group 20 | . . . . 3 3 . 1 1 . 3 3 3 12 14 13 20 18 . Highest-Rated Group 846 | . . . . 40 40 . 34 34 . 288 288 288 542 846 703 754 638 . Highest-Rated Ally 159 | . . . . 16 16 . 34 34 . 96 96 96 159 159 96 96 50 . Total Orders . | . . . . . . . . . . . . . . . . . . . Ally Attacks 609 | . . . . . 35 . 3 3 . 14 23 48 162 35 110 68 108 . Total Damage 16553 | . . . . . 327 . 82 133 . 423 1074 1671 4202 747 3159 1830 2905 . Kills 92 | . . . . . 4 . 1 . . 1 5 13 27 3 18 4 16 . Allies Corrupted . | . . . . . . . . . . . . . . . . . . . Allies Melted 2 | . . . . . . . . . . . . . 1 . 1 . . . Field Lobotomies 5 | . . . . . . . . . . 3 . . 2 . . . . . Intel | -11 -10 -10 -10 -9 -8 -7 -6 -6 -6 -6 -5 -5 -5 -5 -4 -4 -4 -3 ------- Run | Yrd Mat Min Exi Min Mat Fac Fac Low Low Dat Pro Fac Ext Cet Fac Was Fac Res Active Infowar (turns) 8494 | 7 1231 147 462 336 337 966 1259 320 469 302 216 519 779 445 337 122 240 . Optics 5673 | . . . . . . 665 1259 320 469 302 216 519 779 445 337 122 240 . Sensors 5117 | . . . . . . 193 1197 320 469 302 216 519 773 445 337 122 224 . Seismic 3016 | 7 1231 147 462 336 337 496 . . . . . . . . . . . . Jamming 1428 | . . . . . 335 966 123 . . . . . 3 . 1 . . . Robot Analysis Total 152 | . . . . . . . 1 . . 151 . . . . . . . . Derelict Logs Recovered 1 | . . . . 1 . . . . . . . . . . . . . . Drone Launches . | . . . . . . . . . . . . . . . . . . . Drone Recoveries . | . . . . . . . . . . . . . . . . . . . Exploration | -11 -10 -10 -10 -9 -8 -7 -6 -6 -6 -6 -5 -5 -5 -5 -4 -4 -4 -3 ------------- Run | Yrd Mat Min Exi Min Mat Fac Fac Low Low Dat Pro Fac Ext Cet Fac Was Fac Res Turns Passed 8944 | 77 1231 147 462 466 342 966 1259 320 469 302 216 519 779 445 337 122 268 217 Spaces Moved 6515 | 57 541 145 350 296 206 451 521 237 425 236 134 511 818 188 480 155 303 461 Core 200 | 17 . . . . . . . . . . . . . . . . 56 127 Treads 497 | . 228 . . . . . . . . . . . 100 169 . . . . Legs 2 | . . . . . . . . . . . . . 2 . . . . . Wheels 3119 | 40 313 145 350 296 206 451 294 237 425 54 71 182 . . 55 . . . Hover 2118 | . . . . . . . 227 . . . . 329 716 19 425 155 247 . Flight 579 | . . . . . . . . . . 182 63 . . . . . . 334 Fastest Speed 23 | 50 100 100 100 130 130 110 86 101 86 23 120 40 40 45 32 32 32 35 Average Speed 101 | 85 125 100 128 133 130 162 199 101 97 102 152 70 62 148 47 32 43 41 Slowest Speed 300 | 100 160 100 130 145 145 245 300 101 130 189 189 120 260 160 130 32 110 50 Overloaded Moves . | . . . . . . . . . . . . . . . . . . . Propulsion Burnouts . | . . . . . . . . . . . . . . . . . . . Robots Hopped 26 | . . . . . . . . . . . . . . . . . . 26 Potential Cave-ins . | . . . . . . . . . . . . . . . . . . . Cave-ins Triggered . | . . . . . . . . . . . . . . . . . . . Exploration Rate (%) 44 | 4 93 27 68 52 26 18 17 49 67 81 31 17 86 71 15 88 15 23 Regions Visited 18 Branch Regions 9 Pre-discovered Areas 35 | . 2 . 1 1 . . . . . 31 . . . . . . . . Known Exits Taken 11 | . 1 . . . 1 1 1 1 1 1 1 1 1 1 . . . . Unknown Exits Taken 5 | 1 . 1 1 1 . . . . . . . . . . . . 1 . Scrap Searched 3 | . . . . 2 . . . . . . 1 . . . . . . . Spaces Dug 20 | . . . . . . . 5 . 5 . . 5 . . 2 . 3 . Terrain Destroyed 128 | . . . . . 8 4 6 . 5 . . 5 . 36 2 . 62 . Melee 20 | . . . . . . . 5 . 5 . . 5 . . 2 . 3 . Projectile 22 | . . . . . 8 4 1 . . . . . . . . . 9 . AOE 86 | . . . . . . . . . . . . . . 36 . . 50 . Terrain Rammed . | . . . . . . . . . . . . . . . . . . . Walls Destroyed . | . . . . . . . . . . . . . . . . . . . Machines Disabled . | . . . . . . . . . . . . . . . . . . . Actions | -11 -10 -10 -10 -9 -8 -7 -6 -6 -6 -6 -5 -5 -5 -5 -4 -4 -4 -3 --------- Run | Yrd Mat Min Exi Min Mat Fac Fac Low Low Dat Pro Fac Ext Cet Fac Was Fac Res Total 8298 | 78 987 147 362 374 246 566 690 316 452 294 145 644 1026 331 583 226 371 460 Wait 979 | . 352 3 . 53 14 16 76 75 . 11 10 75 96 55 57 72 4 10 Move 6453 | 56 540 144 349 295 205 450 520 236 424 235 133 510 817 187 480 154 301 417 Hop 18 | . . . . . . . . . . . . . . . . . . 18 Pick Up 167 | 12 17 . 9 9 4 10 13 2 11 15 1 16 17 20 6 . 3 2 Fast Attach 35 | 3 1 . . 1 . 7 5 . . 3 . 2 1 2 6 . . 4 Attach 82 | 4 5 . . 2 5 3 10 . 1 9 1 8 14 11 1 . 3 5 Detach 8 | . . . . 1 . 1 1 . . 2 . . . 3 . . . . Swap 43 | . 6 . 1 2 . 2 9 . . 2 . 3 3 7 7 . 1 . Drop 132 | . 9 . 3 11 1 13 20 2 2 13 . 15 7 23 10 . 3 . Fire 250 | 3 57 . . . 17 64 12 . . 3 . . 40 8 . . 46 . Melee 85 | . . . . . . . 16 1 14 1 . 15 19 7 3 . 9 . Ram 1 | . . . . . . . . . . . . . . . . . . 1 Kick . | . . . . . . . . . . . . . . . . . . . Crush . | . . . . . . . . . . . . . . . . . . . Escape Stasis 37 | . . . . . . . 8 . . . . . 12 . 13 . 1 3 Rewire . | . . . . . . . . . . . . . . . . . . . Trap . | . . . . . . . . . . . . . . . . . . . Miscellaneous 8 | . . . . . . . . . . . . . . 8 . . . . Route ------- -11/Scrapyard -10/Materials (discovered 6 exits: *Mat x3 / *Min x2 / Sub) -10/Mines (discovered 3 exits: Mat / *Exi / Sub) -10/Exiles -9/Mines -8/Materials (discovered 2 exits: *Fac x2) -7/Factory (discovered 4 exits: *Fac x2 / Sto x2) -6/Factory -6/Lower Caves -6/Lower Caves -6/Data Miner -5/Proximity Caves -5/Factory (discovered 5 exits: *Fac / Upp x2 / *Ext x2) -5/Extension (discovered 2 exits: *Fac / *Cet) -5/Cetus (discovered 2 exits: *Fac / [*Arc]) -4/Factory (discovered 2 exits: *Upp x2) -4/Waste -4/Factory -3/Research History --------- Turn | Location | Event 6 | -11/Scrapyard | Discovered new exit (range 16) 78 | -11/Scrapyard | Entered Materials 296 | -10/Materials | Discovered new exit (range 15) 314 | -10/Materials | Build established: Mutant 651 | -10/Materials | Discovered new exit (range 15) 751 | -10/Materials | Discovered new exit (range 7) 809 | -10/Materials | Discovered new exit (range 7) 870 | -10/Materials | Identified exit to Mines 896 | -10/Materials | Discovered new exit (range 7) 967 | -10/Materials | Learned location of 1 exit from Storage 1078 | -10/Materials | Learned location of 2 exits from Mines 1148 | -10/Materials | Learned Storage garrison access intel 1167 | -10/Materials | Learned location of 1 exit from Storage 1174 | -10/Materials | Learned Storage emergency access door positions 1212 | -10/Materials | Identified exit to Subcaves 1212 | -10/Materials | Learned location of 1 exit from Materials 1243 | -10/Materials | Learned location of Mines (-10) 1286 | -10/Materials | Learned location of Mines (-9) 1309 | -10/Materials | Entered Mines 1310 | -10/Mines | Identified exit to Materials 1339 | -10/Mines | Deemed a non-threat by the Exiles lab entrance 1339 | -10/Mines | Discovered new exit (range 5) 1456 | -10/Mines | Entered Exiles 1493 | -10/Exiles | Met 8R-AWN 1514 | -10/Exiles | Met EX-HEX 1575 | -10/Exiles | Met EX-DEC 1596 | -10/Exiles | Learned location of Zion (-7) 1727 | -10/Exiles | Met EX-BIN 1745 | -10/Exiles | Aligned with FarCom system 1747 | -10/Exiles | Given EX-Vault access code 1777 | -10/Exiles | Opened EX-Vault 1784 | -10/Exiles | Found Field Lobotomy Kit 1790 | -10/Exiles | Found Army-in-a-Box 1797 | -10/Exiles | Found Trap Reconfigurator 1825 | -10/Exiles | Warned to stay clear of 0b10 Research branches 1834 | -10/Exiles | Exiles lab attacked by MAIN.C 1907 | -10/Exiles | Discovered new exit (range 10) 1918 | -10/Exiles | Stole three prototypes: Trap Reconfigurator, Army-in-a-Box, Field Lobotomy Kit 1918 | -10/Exiles | Entered Mines 2205 | -9/Mines | Assisted by bots powering up and referring to "LRC-V3" 2237 | -9/Mines | Met a Derelict shopkeep closing up shop 2353 | -9/Mines | Discovered new exit (range 3) 2384 | -9/Mines | Entered Materials 2384 | -8/Materials | Accompanied by 3 allies 2384 | -8/Materials | Evolved 4 slots: Propulsion x1, Utility x3 2385 | -8/Materials | Identified exit to Factory 2649 | -8/Materials | Discovered exit to Factory (range 16) 2726 | -8/Materials | Entered Factory 2726 | -7/Factory | Evolved 2 slots: Propulsion x1, Utility x1 2727 | -7/Factory | Identified exit to Storage 2728 | -7/Factory | FarCom data flow suspended 3061 | -7/Factory | Discovered new exit (range 8) 3114 | -7/Factory | Lost 3 parts (2n1u) 3241 | -7/Factory | Noticed a derelict Sapper rigging charges 3313 | -7/Factory | Discovered new exit (range 17) 3690 | -7/Factory | Identified exit to Factory 3692 | -7/Factory | Entered another Factory area 3692 | -6/Factory | Evolved 2 slots: Propulsion x1, Utility x1 3794 | -6/Factory | Build established: Skirmisher 3845 | -6/Factory | Lost 3 parts (1p1n1u) 4896 | -6/Factory | Fabricated D-53 Grenadier? 4926 | -6/Factory | Discovered new exit (range 16) 4950 | -6/Factory | Identified exit to Lower Caves 4951 | -6/Factory | Entered Lower Caves 4951 | -6/Lower Caves | Accompanied by 1 ally 4951 | -6/Lower Caves | Spotted QE-4JI(f) 4952 | -6/Lower Caves | Spotted HY-2RT(f) 4953 | -6/Lower Caves | Encountered a Master Thief 4953 | -6/Lower Caves | Encountered a Master Thief 4955 | -6/Lower Caves | Trap Reconfigurator stolen by Master Thief 5011 | -6/Lower Caves | Build established: Scavenger-Assassin 5264 | -6/Lower Caves | Discovered new exit (range 7) 5270 | -6/Lower Caves | Identified exit to Lower Caves 5271 | -6/Lower Caves | Entered another Lower Caves area 5271 | -6/Lower Caves | Spotted A2-LA8(f) 5271 | -6/Lower Caves | Spotted NJ-WIN(f) 5272 | -6/Lower Caves | Army-in-a-Box stolen by Master Thief 5273 | -6/Lower Caves | Encountered a Master Thief 5273 | -6/Lower Caves | Encountered a Master Thief 5274 | -6/Lower Caves | Phase Shifter stolen by Master Thief 5366 | -6/Lower Caves | Spotted B-75 Beast 5612 | -6/Lower Caves | Lost 3 parts (3n) 5731 | -6/Lower Caves | Discovered new exit (range 7) 5737 | -6/Lower Caves | Identified exit to Data Miner 5740 | -6/Lower Caves | Entered Data Miner 5740 | -6/Data Miner | Discovered new exit (range 6) 5760 | -6/Data Miner | Met Data Miner 5787 | -6/Data Miner | Learned location of Section 7 (-2) 5787 | -6/Data Miner | Acquired the access code to Warlord's prototype stash 5808 | -6/Data Miner | Received God Mode back door access code from Data Miner 5839 | -6/Data Miner | Destroyed Data Miner 5842 | -6/Data Miner | Interfaced with the Data Conduit 5844 | -6/Data Miner | Found Prototype Hackware 5847 | -6/Data Miner | Assimilated Enhanced Grunt with FLK Orb 5850 | -6/Data Miner | Assimilated Enhanced Grunt with FLK Orb 5853 | -6/Data Miner | Assimilated Enhanced Grunt with FLK Orb 5874 | -6/Data Miner | Found Prototype Hackware 5876 | -6/Data Miner | Found Prototype Hackware 6038 | -6/Data Miner | Identified exit to Proximity Caves 6042 | -6/Data Miner | Entered Proximity Caves 6042 | -5/Proximity Caves | Accompanied by 3 allies 6110 | -5/Proximity Caves | Spotter reported a threat 6119 | -5/Proximity Caves | Build established: Scavenger-Gladiator 6188 | -5/Proximity Caves | Spotter reported a threat 6232 | -5/Proximity Caves | Discovered new exit (range 16) 6248 | -5/Proximity Caves | Identified exit to Factory 6258 | -5/Proximity Caves | Entered Factory 6258 | -5/Factory | Accompanied by 3 allies 6258 | -5/Factory | Evolved 2 slots: Propulsion x1, Utility x1 6259 | -5/Factory | Loaded intel: 299 machine locations 6272 | -5/Factory | Identified Deep Network Scanner 6273 | -5/Factory | Identified System Mapper 6275 | -5/Factory | Identified Quantum Router 6440 | -5/Factory | Central database locked down 6464 | -5/Factory | Discovered new exit (range 10) 6487 | -5/Factory | Identified exit to Factory 6525 | -5/Factory | Identified exit to Upper Caves 6525 | -5/Factory | Identified exit to Extension 6777 | -5/Factory | Entered Extension 6778 | -5/Extension | Loaded intel: 36 machine locations 6809 | -5/Extension | Build established: Wizard-Scout 6836 | -5/Extension | Lost 3 allies 6960 | -5/Extension | Rescued A7 7025 | -5/Extension | Rescued a captive Derelict 7031 | -5/Extension | Rescued a captive Derelict 7171 | -5/Extension | Spotted B-75 Beast 7176 | -5/Extension | Assimilated B-75 Beast with FLK Orb 7179 | -5/Extension | Spotted B-75 Beast 7182 | -5/Extension | Assimilated B-75 Beast with FLK Orb 7217 | -5/Extension | Rescued a captive Derelict 7232 | -5/Extension | Energy Cycler disabled 7232 | -5/Extension | Rescued a captive Derelict 7232 | -5/Extension | Rescued a captive Derelict 7234 | -5/Extension | Rescued a captive Derelict 7239 | -5/Extension | Rescued a captive Derelict 7251 | -5/Extension | Rescued a captive Derelict 7266 | -5/Extension | Build established: Hacker-Scout 7511 | -5/Extension | Discovered exit to Factory (range 10) 7513 | -5/Extension | Discovered new exit (range 6) 7540 | -5/Extension | Identified exit to Cetus 7556 | -5/Extension | Entered Cetus 7556 | -5/Cetus | Accompanied by 12 allies (A7) 7557 | -5/Cetus | Loaded intel: 24 machine locations 7561 | -5/Cetus | Acquired a Cetus Manufacturing Module code from A7 7572 | -5/Cetus | Spotted Cetus Guard 7574 | -5/Cetus | Spotted Cetus Guard 7578 | -5/Cetus | Spotted Cetus Guard 7580 | -5/Cetus | Spotted Cetus Guard 7588 | -5/Cetus | Allies destroyed Cetus Guard 7597 | -5/Cetus | Destroyed Cetus Guard 7597 | -5/Cetus | Destroyed Cetus Guard 7600 | -5/Cetus | Destroyed Cetus Guard 7622 | -5/Cetus | System corruption reached 10% 7630 | -5/Cetus | Lost 3 parts (2n1w) 7706 | -5/Cetus | Started Cetus Manufacturing Module 7731 | -5/Cetus | Manufactured an Enhanced Grunt 7744 | -5/Cetus | Discovered new exit (range 22) 7756 | -5/Cetus | Manufactured an Enhanced Grunt 7781 | -5/Cetus | Manufactured an Enhanced Grunt 7802 | -5/Cetus | Spotted Cetus Guard 7802 | -5/Cetus | Spotted Cetus Guard 7802 | -5/Cetus | Spotted Cetus Guard 7802 | -5/Cetus | Spotted Cetus Guard 7805 | -5/Cetus | Discovered exit to Factory (range 21) 7806 | -5/Cetus | Manufactured an Enhanced Grunt 7811 | -5/Cetus | Allies destroyed Cetus Guard 7815 | -5/Cetus | Destroyed Cetus Guard 7815 | -5/Cetus | Destroyed Cetus Guard 7819 | -5/Cetus | Allies destroyed Cetus Guard 7831 | -5/Cetus | Manufactured an Enhanced Grunt 7833 | -5/Cetus | Met Revision 17 7873 | -5/Cetus | System corruption reached 30% 7948 | -5/Cetus | Murdered A7 7965 | -5/Cetus | Extracted ID and sensor layout for unrecognized location from A7's data core 8001 | -5/Cetus | Entered Factory 8001 | -4/Factory | Accompanied by 13 allies 8001 | -4/Factory | Evolved 2 slots: Power x1, Utility x1 8002 | -4/Factory | Loaded intel: 333 machine locations 8027 | -4/Factory | Discovered new exit (range 14) 8134 | -4/Factory | Identified exit to DSF 8170 | -4/Factory | Discovered new exit (range 3) 8171 | -4/Factory | Identified exit to Upper Caves 8222 | -4/Factory | Fabricated Imp. Linear Gravjet (x2) 8276 | -4/Factory | Lost 5 allies 8338 | -4/Factory | Sucked down chute 8338 | -4/Factory | Entered Waste 8353 | -4/Waste | 2 allies followed down the chute 8356 | -4/Waste | Spotted C-40 Crusher 8356 | -4/Waste | Spotted C-40 Crusher 8359 | -4/Waste | Spotted C-40 Crusher 8360 | -4/Waste | Spotted C-40 Crusher 8363 | -4/Waste | Warlord forces began an assault 8364 | -4/Waste | Allies destroyed C-40 Crusher 8386 | -4/Waste | Allies destroyed C-40 Crusher 8387 | -4/Waste | Spotted C-40 Crusher 8391 | -4/Waste | Allies destroyed C-40 Crusher 8393 | -4/Waste | Spotted C-40 Crusher 8400 | -4/Waste | Allies destroyed C-40 Crusher 8406 | -4/Waste | Discovered new exit (range 11) 8408 | -4/Waste | Identified exit to Factory 8460 | -4/Waste | Entered Factory 8460 | -4/Factory | Accompanied by 18 allies 8461 | -4/Factory | Loaded intel: 268 machine locations 8524 | -4/Factory | Lost 6 allies 8551 | -4/Factory | Garrison activated, responded to threat 8700 | -4/Factory | Released all parts (5) 8708 | -4/Factory | Core integrity fell below 50% 8718 | -4/Factory | Discovered new exit (range 16) 8728 | -4/Factory | Entered Research 8728 | -3/Research | Evolved 2 slots: Propulsion x1, Utility x1 8729 | -3/Research | Loaded intel: 113 machine locations 8729 | -3/Research | Lost 15 parts (2p5n3u5w) 8808 | -3/Research | Spotted B-86 Titan 8894 | -3/Research | Spotted B-86 Titan 8922 | -3/Research | Core integrity fell below 50% 8928 | -3/Research | Revision forces began assault on 0b10 8936 | -3/Research | Lost 8 parts (1p4n3u) 8939 | -3/Research | Core integrity fell below 20% 8945 | -3/Research | Self-destructed Last Messages --------------- 08896_ Slug penetrates Terminal. 08896_ Terminal disabled. 08896_ Slug penetrates Wall. 08897_ Terminal disabled. 08902_ Impulse Thruster Array destroyed. 08903_ RHVAYY|,XXVOMV>4CZDRRS 08905_ Adv. Energy Well destroyed. 08905_ Penetrated by Slug. 08906_ U-05 Engineer builds a Wall. 08907_ P-80 Master resets B-86 Titan, system corruption cleaned. 08911_ Connecting with Terminal... 08923_ Slammed into S-43 Plague. 08928_ ALERT: Unknown force entering Zones 9Z, 1U, 5X. 08928_ ALERT: Local systems malfunctioning. 08932_ Connecting with Terminal... Feedback: System corruption (+1%). 08932_ ALERT: Suspicious activity at Terminal R013. Dispatching Investigation squad. 08939_ System corrupted: Matter fused (-9). 08939_ P-80 Master resets K-01 Serf, system corruption cleaned. Map ----- +----------------------------------------------------+ | ?????# / #???????????????????# ## | | ?????# # #???????????????????# ## | | ?????# # #????????????????####/###### | | ?????# # #????????????????# #??? | | ?????# # #????????????????# ##??? | | ?????########+#### #????????????????# === #???? | | ?############ #### #????????????????# == #???? | | #????????????????# == #???? | | #????????????????# [#???? | | #????????????????# #???? | | #????????????????####+##???? | | +####+############ #??"""""????????#### #???? | | ????????# # #??"""""????????+ #???? | | ????????# = # #??"""""????????#### ##### | | """?????# ! + +??????????????????## | | """?????# #s #???????????????????# | | """"????# " " #s #???????????????????# | | """?????# "R" ?# #????+#?????????????# | | ????????# """ ?# #???? #??######?????#+## | | ????????# ? ??# #???? #? ???????# | | ?????????? / ??# ##### ## ! ???????# | | ??????????####???# kR ????????# | | ?????????????????# #????"""????????# | | ?????????????????# #????"""????????# | | ?????????????????# #????"""????????# | | ?????????????????##+#####@ #???????????????# | | ????????????????????????# #???????????????# | | ????????????????????????# #???############# | | ???????????????????"""??# ? | | ??????????????""???"""??# | | ??????????????""???"""??# ^ | | ??????????????""????????# !% "" | | ??????????????S?????????############### "" | | ??????????????""???"""????????????????# G | | ??????????????""???"""?????????????? # "" | | ??????????????""???"""?????????????? + "" | | ??????????????????????????????????????# | | ???????????????????????????????"T"????# | | ???????????????????????????????"""????# | | ??????????????????????????????????????# """ | | ??????????????????????????????????????# """" | | ??????????????????????????????????????# """" | | ??????????????????????????????????????# """ | | ??????????????????????????????????????# | | ??????????????????????????????????????# | | ????????????????????????????########### * | | ????????????????????????????# ! # """%= | | ????????????????????????????# # """"! | | ????????????????????????????# # """" | | ????????????????????????????# + """ | +----------------------------------------------------+ Best States ------------- Heat Dissipation 74 Energy Generation 37 Energy Capacity 600 Matter Stores 300 Matter Capacity 300 Sight Range 22 Robot Scan Range 15 Terrain Scan Density 10 Jamming Range 12 Armor Coverage 225 Resistance: KI 20 Resistance: EM 20 Core Shielding 30 Propulsion Shielding 33 Phase Shifting 5 Evasion (%) 68 Melee Accuracy 16 Recoil Reduction 6 Salvage Targeting 1 Offensive Hacking 45 Defensive Hacking 25 Authchip Count 2 Item Schematics ----------------- Gravmag Array | -7/Factory | Hacked Combat Drone Bay | -6/Data Miner | Free Lgt. Regenerative Plating | -6/Data Miner | Free Cld. Nuclear Pulse Thruster | -6/Data Miner | Free Exp. Heat Sink | -6/Data Miner | Free Hvy. Gatling Laser | -6/Data Miner | Free Imp. Linear Gravjet | -6/Data Miner | Free Adv. Particle Charger | -6/Data Miner | Free HERF Cannon | -6/Data Miner | Free Com. HERF Cannon | -6/Data Miner | Free Cmb. Antigrav System | -6/Data Miner | Free Hvy. Disruptor Cannon | -5/Factory | Hacked Hyp. Gauss Cannon | -5/Factory | Hacked Gyrokinetic Inverter | -5/Extension | Hacked Linear Gravjet | -5/Extension | Hacked Enh. Nova Cannon | -4/Factory | Hacked Robot Schematics ------------------ D-53 Grenadier | -7/Factory | Downloaded M-22 Extractor | -6/Data Miner | Free B-48 Gladiator | -6/Data Miner | Free G-50 Soldier | -6/Data Miner | Free H-66 Slayer | -6/Data Miner | Free G-67 Veteran | -6/Data Miner | Free L-61 Swordsman | -6/Data Miner | Free B-60 Warrior | -5/Factory | Hacked Fabricated ------------ D-53 Grenadier | x1 | -6/Factory | Authchip Imp. Linear Gravjet | x2 | -4/Factory Repaired ---------- Nothing Alien Tech Used ----------------- None Achievements -------------- None Challenges ------------ None Game ------ Seed MiniRestorationReplica Manual? 0 Play Time 01:31:33 Cumulative 339.5 hours Start 2025.09.30 @ 06:31:42 End 2025.09.30 @ 19:57:08 Sessions 5 Manual Loads 0 Difficulty Rogue Special Mode None Game No. 449 Rogue 449 Adventurer 0 Explorer 0 Win Type - Total 11 Types 6/0/1/2/1/0/1/0/0/0 Lore% 87 Gallery% 82 Achievement% 69 Wizard Run 0 Options --------- Layout 0 ASCII 0 Keyboard 0 Movement Mouse Keybinds 0 Fullscreen 1 Font 18/X11 Map View 76x50 Zoom Use 0% Tactical HUD 1 Map Filters NONE Filters NONE Steam 1 RUN: 28311067-ab55-4439-a0af-89902b81dd1b